bitfinex/quotes_SOLUSD_20241101
["timestamp","ask_amount","ask_price","bid_price","bid_amount"]
[1730499613834,23.776884,165.64,165.59,21.1365]
[1730499614027,70.25098,165.63,165.58,6.0393]
[1730499614332,0.12549,165.61,165.58,6.0393]
[1730499615055,0.25098,165.61,165.57,6.0396]
[1730499615940,0.25098,165.61,165.54,30.2041]
[1730499622856,0.12549,165.61,165.55,20.0]
[1730499623054,23.776884,165.62,165.55,20.0]
[1730499623839,0.12549,165.64,165.55,20.0]
[1730499624258,0.25098,165.64,165.55,20.0]
[1730499624647,6.28848,165.64,165.56,21.1403]
[1730499625365,23.776884,165.63,165.56,21.1403]
[1730499625741,0.12549,165.62,165.56,21.1403]
[1730499628861,0.25098,165.62,165.56,21.1403]
[1730499629640,23.776884,165.61,165.56,21.1403]
[1730499630152,0.12549,165.6,165.56,21.1403]
[1730499631268,0.12549,165.6,165.56,15.1002]
[1730499633945,23.902374,165.62,165.56,15.1002]
[1730499634158,0.12549,165.61,165.56,15.1002]
[1730499634471,70.25098,165.61,165.56,15.1002]
[1730499634668,23.776884,165.6,165.56,15.1002]
[1730499634838,0.25098,165.59,165.56,15.1002]
[1730499635046,0.12549,165.56,165.54,6.0408]
[1730499635658,0.12549,165.56,165.53,45.3088]
[1730499639671,0.12549,165.56,165.53,30.206]
[1730499640367,0.12549,165.56,165.5,21.1479]
[1730499641172,23.902374,165.54,165.5,21.1479]
[1730499641368,0.12549,165.53,165.5,21.1479]
[1730499641747,0.12549,165.53,165.48,30.2144]
[1730499642156,23.902374,165.51,165.47,6.29629526]
[1730499642358,70.0,165.52,165.47,6.29629526]
[1730499642359,24.027864,165.48,165.47,6.29629526]
[1730499642652,23.902374,165.48,165.45,15.1103]
[1730499644748,0.12549,165.47,165.43,6.6575308]
[1730499646166,0.12549,165.47,165.43,21.7696308]
[1730499648854,23.776884,165.44,165.43,0.6131308]
[1730499649165,24.027864,165.44,165.43,0.6131308]
[1730499652972,30.072264,165.44,165.43,0.6131308]
[1730499654059,24.027864,165.44,165.43,0.6131308]
[1730499655653,30.072264,165.44,165.43,0.6131308]
[1730499660686,70.0,165.45,165.43,0.6131308]
[1730499660857,0.12549,165.44,165.43,0.6131308]
[1730499661884,30.072264,165.44,165.43,0.6131308]
[1730499663189,24.027864,165.44,165.43,0.6131308]
[1730499665760,30.072264,165.44,165.43,0.6131308]
[1730499671176,30.172264,165.44,165.43,0.6131308]
[1730499671367,50.272264,165.44,165.43,0.6131308]
[1730499671570,50.172264,165.44,165.43,0.6131308]
[1730499671870,50.272264,165.44,165.43,0.6131308]
[1730499673083,50.072264,165.44,165.43,0.6131308]
[1730499674391,50.172264,165.44,165.43,0.6131308]
[1730499678504,30.072264,165.44,165.43,0.6131308]
[1730499678876,6.0444,165.44,165.43,0.6131308]
[1730499679269,70.0,165.45,165.43,0.6131308]
[1730499679469,76.0441,165.45,165.43,0.6131308]
[1730499679674,0.12549,165.44,165.43,0.6131308]
[1730499680390,30.072264,165.44,165.43,0.6131308]
[1730499682192,50.172264,165.44,165.43,0.6131308]
[1730499684489,50.072264,165.44,165.43,0.6131308]
[1730499686591,50.172264,165.44,165.43,0.6131308]
[1730499687695,50.272264,165.44,165.43,0.6131308]
[1730499692793,50.172264,165.44,165.43,0.6131308]
[1730499692999,50.272264,165.44,165.43,0.6131308]
[1730499693589,50.172264,165.44,165.43,0.6131308]
[1730499693797,50.272264,165.44,165.43,0.6131308]
[1730499696077,50.072264,165.44,165.43,0.6131308]
[1730499697182,50.172264,165.44,165.43,0.6131308]
[1730499697385,50.272264,165.44,165.43,0.6131308]
[1730499702727,23.902374,165.36,165.33,15.1206]
[1730499703006,0.12549,165.35,165.33,15.1206]
[1730499707322,6.17339,165.35,165.32,22.0606]
[1730499707604,23.776884,165.34,165.32,22.0606]
[1730499709507,0.12549,165.33,165.32,22.0606]
[1730499709693,30.076364,165.33,165.32,22.0606]
[1730499709895,24.027864,165.33,165.32,22.0606]
[1730499710787,24.027864,165.33,165.3,15.1234]
[1730499710990,23.776884,165.32,165.3,15.1234]
[1730499712417,23.776884,165.32,165.27,21.1774]
[1730499712788,0.12549,165.29,165.27,15.1267]
[1730499713811,0.12549,165.29,165.27,21.1774]
[1730499713996,0.12549,165.29,165.26,6.7855308]
[1730499714606,0.25098,165.27,165.26,0.6131308]
[1730499718808,23.776884,165.28,165.26,6.6640308]
[1730499719119,30.078564,165.27,165.26,0.6131308]
[1730499719320,24.027864,165.27,165.26,0.6131308]
[1730499720202,30.078564,165.27,165.26,0.6131308]
[1730499722627,0.12549,165.19,165.14,15.1379]
[1730499723507,0.12549,165.19,165.14,21.1933]
[1730499724232,0.12549,165.17,165.14,21.1933]
[1730499724396,93.776884,165.2,165.14,21.1933]
[1730499724601,0.12549,165.19,165.14,21.1933]
[1730499725124,0.25098,165.19,165.14,15.1379]
[1730499725501,0.25098,165.19,165.14,21.1933]
[1730499725702,0.25098,165.17,165.14,21.1933]
[1730499726640,0.25098,165.17,165.14,15.1379]
[1730499726924,0.25098,165.15,165.1,21.8114308]
[1730499727107,23.902374,165.13,165.1,0.6131308]
[1730499727299,23.776884,165.16,165.1,0.6131308]
[1730499727300,24.027864,165.11,165.1,0.6131308]
[1730499728528,59.572964,165.11,165.1,0.6131308]
[1730499728822,0.12549,165.04,165.01,15.1503]
[1730499729198,0.12549,165.04,164.99,6.2861]
[1730499729735,0.12549,165.04,164.99,27.4993]
[1730499730700,23.902374,165.04,164.99,27.4993]
[1730499730902,23.776884,165.04,164.99,57.8041]
[1730499732236,0.12549,165.03,164.99,57.8041]
[1730499734622,0.12549,165.03,164.99,27.4993]
[1730499735930,23.776884,165.04,164.99,27.4993]
[1730499736736,23.776884,165.04,164.99,51.7433]
[1730499737917,23.776884,165.04,164.99,57.8042]
[1730499738835,0.12549,165.03,164.99,57.8042]
[1730499741126,0.12549,165.03,164.99,27.4994]
[1730499741332,0.12549,165.03,164.99,21.2133]
[1730499742312,0.12549,165.03,164.99,15.1524]
[1730499744538,93.776884,165.04,164.99,15.1524]
[1730499744539,23.776884,165.01,164.99,15.1524]
[1730499744841,0.12549,165.0,164.99,15.1524]
[1730499745544,23.776884,164.99,164.95,15.1553]
[1730499745841,0.12549,164.98,164.95,15.1553]
[1730499752118,23.776884,164.99,164.95,15.1553]
[1730499752326,70.0,165.06,164.95,15.1553]
[1730499752641,76.0584,165.06,164.95,15.1553]
[1730499754649,23.902374,165.05,164.95,15.1553]
[1730499755426,70.0,165.03,164.95,15.1553]
[1730499755632,23.776884,165.02,164.95,15.1553]
[1730499755933,0.12549,165.01,164.95,15.1553]
[1730499759332,23.776884,165.0,164.95,15.1553]
[1730499759534,0.12549,164.99,164.95,15.1553]
[1730499759830,0.12549,164.96,164.93,0.6131308]
[1730499760030,0.12549,164.94,164.93,0.6131308]
[1730499760258,70.12549,164.94,164.93,0.6131308]
[1730499760549,93.902374,164.94,164.93,0.6131308]
[1730499760936,99.965174,164.94,164.93,0.6131308]
[1730499762255,119.965174,164.94,164.93,0.6131308]
[1730499762429,135.805974,164.94,164.93,0.6131308]
[1730499762853,135.705974,164.94,164.93,0.6131308]
[1730499763358,135.705974,164.94,164.84,12.2582]
[1730499763359,0.12549,164.87,164.84,12.2582]
[1730499763732,23.776884,164.88,164.84,27.4244]
[1730499764350,0.12549,164.87,164.84,27.4244]
[1730499764954,0.12549,164.87,164.84,21.2326]
[1730499766234,23.776884,164.86,164.81,21.2361]
[1730499766556,23.776884,164.88,164.81,51.574]
[1730499767451,23.776884,164.89,164.81,51.574]
[1730499767637,0.12549,164.88,164.81,51.574]
[1730499768140,23.776884,164.89,164.82,20.0]
[1730499768451,70.0,164.93,164.82,20.0]
[1730499768859,70.0,164.93,164.81,81.9119]
[1730499769162,70.0,164.93,164.82,20.0]
[1730499769340,76.0633,164.93,164.83,21.2339]
[1730499769856,0.12549,164.91,164.83,21.2339]
[1730499770958,0.12549,164.91,164.85,6.5023]
[1730499772758,0.12549,164.91,164.86,21.23]
[1730499773344,86.6247,164.98,164.87,20.0]
[1730499773667,76.0608,165.0,164.87,20.0]
[1730499774236,76.0608,165.0,164.87,20.1]
[1730499774647,70.0,165.0,164.89,35.0572]
[1730499774958,76.0606,165.0,164.9,51.5463]
[1730499775168,3.24,165.01,164.9,51.5463]
[1730499775169,9.3002,165.01,164.9,51.5463]
[1730499775659,3.24,165.01,164.91,20.0]
[1730499775955,70.0,165.04,164.91,20.0]
[1730499776736,76.0591,165.04,164.93,20.0]
[1730499777038,22.6832,165.06,164.93,20.1]
[1730499777237,70.0,165.07,164.96,20.0]
[1730499777752,6.0579,165.08,164.97,6.5023]
[1730499778253,6.0579,165.08,164.98,21.2146]
[1730499779251,6.0584,165.06,164.98,51.5213]
[1730499780275,23.902374,165.05,164.98,51.5213]
[1730499782154,6.0579,165.08,164.99,20.0]
[1730499782360,23.902374,165.07,164.99,20.0]
[1730499784067,23.776884,165.06,165.0,15.1515]
[1730499784381,0.12549,165.05,165.0,15.1515]
[1730499785563,0.12549,165.02,164.97,21.6564]
[1730499785765,0.12549,165.02,164.97,27.7181]
[1730499790384,23.776884,165.04,164.97,27.7181]
[1730499790790,0.12549,165.03,164.97,27.7181]
[1730499792572,23.776884,165.01,164.97,27.7181]
[1730499792769,23.776884,165.01,164.97,21.2158]
[1730499793001,23.776884,165.01,164.97,15.1541]
[1730499793281,0.12549,165.0,164.96,6.0618]
[1730499793883,0.12549,165.0,164.94,21.2195]
[1730499795387,23.776884,164.99,164.94,21.2195]
[1730499795688,0.12549,164.96,164.92,6.0635]
[1730499796790,23.776884,164.97,164.92,21.2223]
[1730499798478,23.776884,164.98,164.92,21.2223]
[1730499802276,70.0,165.04,164.92,51.54]
[1730499802474,70.0,165.04,164.93,20.0]
[1730499803270,76.0594,165.04,164.94,51.5338]
[1730499803793,23.902374,165.03,164.94,51.5338]
[1730499804880,0.12549,165.03,164.94,51.5338]
[1730499806168,23.902374,165.03,164.94,51.5338]
[1730499808099,23.902374,165.03,164.92,30.5177]
[1730499808100,3.24,165.09,164.98,15.1947]
[1730499808393,3.24,165.09,165.01,20.0]
[1730499808599,85.9518,165.14,165.01,20.1]
[1730499808893,92.0073,165.14,165.01,20.2]
[1730499809779,92.0073,165.14,165.03,20.0]
[1730499810877,23.902374,165.13,165.04,21.2069]
[1730499811775,23.902374,165.13,165.04,51.5025]
[1730499813298,6.0551,165.15,165.05,15.9425]
[1730499814217,6.0543,165.17,165.06,6.3894]
[1730499814496,23.902374,165.16,165.06,6.3894]
[1730499815102,23.776884,165.14,165.07,21.203]
[1730499815480,0.12549,165.13,165.07,15.145]
[1730499815926,0.12549,165.13,165.06,6.0583]
[1730499816598,0.12549,165.13,165.06,21.2043]
[1730499817180,23.776884,165.11,165.03,20.0]
[1730499817400,0.12549,165.1,165.03,20.0]
[1730499818185,23.776884,165.09,165.04,21.2069]
[1730499818502,0.12549,165.08,165.04,21.2069]
[1730499818704,0.12549,165.08,165.04,15.1478]
[1730499818909,0.12549,165.08,165.03,6.0594]
[1730499819102,23.776884,165.07,165.01,15.1501]
[1730499819406,0.12549,165.06,165.01,21.2103]
[1730499820190,0.12549,165.06,164.98,21.2146]
[1730499820508,23.776884,165.05,164.98,21.2146]
[1730499820679,0.12549,165.04,164.98,21.2146]
[1730499822506,23.902374,165.09,164.99,20.1]
[1730499823210,23.776884,165.09,164.99,20.0]
[1730499823713,23.776884,165.07,165.0,21.2121]
[1730499824385,0.12549,165.06,165.0,21.2121]
[1730499827409,23.776884,165.07,165.0,51.5151]
[1730499828287,94.43492041,165.12,165.01,20.0]
[1730499828489,6.0562,165.12,165.01,20.0]
[1730499829308,70.0,165.14,165.01,20.1]
[1730499829616,6.0559,165.13,165.03,20.0]
[1730499830510,23.902374,165.13,165.04,21.2069]
[1730499832408,23.776884,165.12,165.04,51.5025]
[1730499832714,0.12549,165.11,165.04,21.2069]
[1730499833714,6.18219,165.11,165.04,21.2069]
[1730499834221,0.12549,165.09,165.04,21.2069]
[1730499838818,23.776884,165.1,165.04,21.2069]
[1730499838819,22.402374,165.1,165.04,21.2069]
[1730499839514,22.402374,165.1,165.04,15.1478]
[1730499839707,98.459574,165.1,165.04,15.1478]
[1730499840813,23.776884,165.11,165.04,15.1478]
[1730499840996,29.833484,165.11,165.04,15.1478]
[1730499842921,23.776884,165.11,165.04,15.1478]
[1730499843713,29.833384,165.11,165.04,15.1478]
[1730499845513,23.776884,165.07,165.02,6.0597]
[1730499846015,23.776884,165.07,165.02,15.1496]
[1730499847297,23.776884,165.05,165.0,30.303]
[1730499849822,23.776884,165.05,165.01,20.0]
[1730499851314,6.0575,165.09,165.02,21.2094]
[1730499851635,23.776884,165.08,165.02,21.2094]
[1730499854213,23.776884,165.09,165.02,21.2094]
[1730499855133,23.776884,165.09,165.04,21.2069]
[1730499855532,23.776884,165.09,165.04,51.5025]
[1730499860235,15.9902,165.13,165.04,51.5025]
[1730499860533,15.9902,165.13,165.05,26.1567]
[1730499860534,23.776884,165.12,165.05,26.1567]
[1730499861337,210.4,165.16,165.07,20.0]
[1730499862431,210.4,165.16,165.09,20.0]
[1730499862616,23.776884,165.15,165.09,20.0]
[1730499863417,23.776884,165.15,165.08,51.49]
[1730499863618,23.776884,165.15,165.08,21.2017]
[1730499864441,23.776884,165.15,165.08,15.1441]
[1730499865534,29.831984,165.15,165.08,15.1441]
[1730499871347,29.831984,165.15,165.06,6.0582]
[1730499871644,23.776884,165.12,165.06,6.0582]
[1730499871818,70.0,165.11,165.05,15.1466]
[1730499872142,23.776884,165.1,165.05,21.2053]
[1730499872941,23.776884,165.1,165.05,15.1466]
[1730499873546,29.833784,165.1,165.05,15.1466]
[1730499874240,23.776884,165.08,165.03,6.0595]
[1730499874940,23.776884,165.08,165.02,15.1495]
[1730499875142,29.834684,165.08,165.02,21.2093]
[1730499883952,23.776884,165.08,165.02,21.2093]
[1730499888251,23.776884,165.09,165.02,21.2093]
[1730499892149,29.834484,165.09,165.02,21.2093]
[1730499892661,99.834484,165.09,165.02,21.2093]
[1730499896962,29.834484,165.09,165.02,21.2093]
[1730499900154,99.834484,165.09,165.02,21.2093]
[1730499900761,29.834484,165.09,165.02,21.2093]
[1730499901563,99.834484,165.09,165.02,21.2093]
[1730499909153,29.834484,165.09,165.02,21.2093]
[1730499910052,29.834084,165.1,165.02,21.2093]
[1730499918182,23.776884,165.1,165.03,20.0]
[1730499918378,29.833984,165.1,165.03,20.0]
[1730499918695,23.776884,165.1,165.03,36.4865]
[1730499918852,23.776884,165.11,165.03,36.4865]
[1730499919878,23.776884,165.11,165.04,21.2069]
[1730499920374,23.776884,165.11,165.05,20.0]
[1730499920687,21.7444,165.15,165.05,20.0]
[1730499921058,6.0548,165.16,165.05,20.0]
[1730499921283,6.0548,165.16,165.07,20.0]
[1730499922050,6.0548,165.16,165.08,21.2017]
[1730499922853,88.929,165.19,165.08,21.2017]
[1730499923075,6.054,165.18,165.08,51.49]
[1730499923861,6.054,165.18,165.09,20.0]
[1730499924069,6.054,165.18,165.1,21.1992]
[1730499924367,23.776884,165.17,165.1,21.1992]
[1730499925059,18.929,165.19,165.11,20.0]
[1730499925260,3.24,165.19,165.12,6.1732]
[1730499925464,3.24,165.19,165.13,20.0]
[1730499925774,15.689,165.23,165.13,20.0]
[1730499926158,6.0518,165.24,165.13,20.0]
[1730499927380,6.0518,165.24,165.14,21.194]
[1730499927582,23.776884,165.23,165.15,20.0]
[1730499928276,23.776884,165.22,165.16,21.1915]
[1730499930063,100.8164,165.27,165.16,21.1915]
[1730499930064,70.0,165.25,165.16,21.1915]
[1730499931158,21.1786,165.26,165.16,21.1915]
[1730499931159,23.776884,165.22,165.16,21.1915]
[1730499931679,23.776884,165.22,165.16,15.1368]
[1730499932764,23.776884,165.2,165.13,21.1953]
[1730499933073,23.776884,165.18,165.11,6.0565]
[1730499933383,23.776884,165.16,165.1,6.0568]
[1730499934061,70.0,165.15,165.09,6.0571]
[1730499934267,23.776884,165.14,165.09,6.0571]
[1730499936261,29.832284,165.14,165.09,6.0571]
[1730499937881,23.776884,165.14,165.09,21.2003]
[1730499939477,70.0,165.21,165.1,20.0]
[1730499939684,6.0532,165.2,165.1,20.0]
[1730499940366,76.053,165.21,165.1,20.0]
[1730499940786,23.776884,165.2,165.1,20.1]
[1730499942075,23.776884,165.2,165.12,20.0]
[1730499942277,23.776884,165.2,165.13,15.6717]
[1730499943088,23.776884,165.22,165.13,15.6717]
[1730499944072,29.829484,165.22,165.14,41.194]
[1730499945675,23.776884,165.22,165.14,41.194]
[1730499945882,23.776884,165.22,165.14,47.2764]
[1730499946691,29.829384,165.22,165.14,27.2764]
[1730499947586,44.960684,165.22,165.14,21.194]
[1730499947771,44.960684,165.22,165.12,20.0]
[1730499949171,44.960684,165.22,165.13,21.1953]
[1730499949986,23.776884,165.2,165.13,21.1953]
[1730499950185,23.776884,165.2,165.13,15.1395]
[1730499950375,70.0,165.21,165.13,15.1395]
[1730499950376,23.776884,165.18,165.13,15.1395]
[1730499952592,29.830884,165.18,165.13,15.1395]
[1730499954791,23.776884,165.18,165.13,15.1395]
[1730499956591,29.830884,165.18,165.13,15.1395]
[1730499956987,29.830884,165.18,165.11,6.0565]
[1730499957393,23.776884,165.16,165.11,6.0565]
[1730499957896,23.776884,165.16,165.1,15.1418]
[1730499958198,6.0551,165.15,165.1,15.1418]
[1730499958412,23.776884,165.14,165.1,15.1418]
[1730499959095,29.832384,165.14,165.1,15.1418]
[1730499960909,23.776884,165.14,165.08,20.0]
[1730499963689,23.776884,165.14,165.09,15.1432]
[1730499965499,29.832384,165.14,165.08,6.0576]
[1730499966888,29.832384,165.14,165.07,21.203]
[1730499976385,23.776884,165.14,165.07,21.203]
[1730499981912,6.0549,165.16,165.07,51.4931]
[1730499982411,6.054,165.18,165.07,51.4931]
[1730499983289,23.776884,165.17,165.07,51.4931]
[1730499983496,29.830884,165.18,165.07,51.4931]
[1730499984985,23.776884,165.09,165.05,6.32189658]
[1730499985210,23.776884,165.07,164.97,43.0537]
[1730499985391,23.776884,165.07,164.97,49.37865775]
[1730499986409,23.776884,165.05,164.97,49.37865775]
[1730499986611,23.776884,165.05,164.98,20.0]
[1730499987321,23.776884,165.05,164.99,21.2133]
[1730499989014,23.776884,165.06,165.0,20.0]
[1730499989224,6.057,165.1,165.0,20.0]
[1730499990393,23.776884,165.11,165.0,20.0]
[1730499990605,29.833384,165.11,165.02,20.0]
[1730499992292,29.833384,165.11,165.03,21.2082]
[1730499997820,4.79975139,165.16,165.08,0.1]
[1730499997992,6.0525,165.22,165.12,20.0]
[1730499998193,15.8509,165.23,165.12,20.0]
[1730499998520,6.0525,165.22,165.12,20.0]
[1730499999194,23.776884,165.19,165.12,20.0]
[1730499999493,23.776884,165.19,165.14,20.0]
[1730500000625,23.776884,165.19,165.15,21.1928]
[1730500002718,15.8509,165.17,165.1,21.1992]
[1730500003012,23.776884,165.13,165.06,6.0584]
[1730500003218,23.776884,165.13,165.06,21.2037]
[1730500003392,23.776884,165.11,165.06,21.2037]
[1730500003918,36.14952316,165.11,165.06,21.2037]
[1730500004102,36.14952316,165.11,165.06,15.1453]
[1730500004818,42.20612316,165.11,165.05,6.0587]
[1730500005318,42.20612316,165.11,165.05,21.2056]
[1730500006521,29.833484,165.11,165.05,21.2056]
[1730500008294,23.776884,165.11,165.05,21.2056]
[1730500009510,23.776884,165.12,165.05,21.2056]
[1730500018519,23.776884,165.13,165.05,21.2056]
[1730500018706,29.832684,165.13,165.05,21.2056]
[1730500029143,23.776884,165.13,165.05,51.4994]
[1730500029317,23.776884,165.14,165.05,51.4994]
[1730500029735,23.776884,165.15,165.05,51.4994]
[1730500030040,29.831984,165.15,165.05,51.4994]
[1730500033519,29.831984,165.15,165.07,21.203]
[1730500033746,21.9053,165.17,165.08,20.0]
[1730500033950,6.0536,165.19,165.08,20.0]
[1730500034142,6.0536,165.19,165.1,20.0]
[1730500034318,6.0536,165.19,165.11,6.1467]
[1730500035135,23.776884,165.18,165.11,6.1467]
[1730500035343,23.776884,165.18,165.12,21.1967]
[1730500040428,23.776884,165.2,165.12,21.1967]
[1730500040645,29.830184,165.2,165.12,21.1967]
[1730500042353,23.776884,165.17,165.12,15.1405]
[1730500042526,23.776884,165.15,165.09,15.1429]
[1730500043751,23.776884,165.13,165.09,15.1429]
[1730500054156,29.832784,165.13,165.09,15.1429]
[1730500057553,29.832784,165.13,165.09,14.6429]
[1730500058156,23.776884,165.14,165.09,14.6429]
[1730500061750,23.776884,165.15,165.09,14.6429]
[1730500065451,23.776884,165.15,165.1,20.0]
[1730500065650,23.776884,165.16,165.1,20.0]
[1730500066943,23.776884,165.16,165.11,21.1979]
[1730500072460,29.831584,165.16,165.08,51.49]
[1730500072660,29.831584,165.16,165.09,20.0]
[1730500073870,29.831584,165.16,165.1,21.1992]
[1730500078152,23.776884,165.16,165.1,21.1992]
[1730500078354,23.776884,165.17,165.1,21.1992]
[1730500079771,29.831284,165.17,165.1,15.1423]
[1730500081176,23.776884,165.17,165.1,15.1423]
[1730500081573,29.831284,165.17,165.1,15.1423]
[1730500081778,23.776884,165.17,165.1,15.1423]
[1730500083482,29.831284,165.17,165.1,15.1423]
[1730500083802,39.995384,165.15,165.1,15.1423]
[1730500083988,39.995384,165.15,165.08,6.0576]
[1730500085490,23.776884,165.13,165.08,15.1441]
[1730500089772,23.776884,165.1,165.05,21.45539751]
[1730500089971,23.776884,165.1,165.05,21.2055]
[1730500091178,29.833984,165.1,165.05,15.1468]
[1730500094187,23.776884,165.11,165.05,15.1468]
[1730500097687,23.776884,165.12,165.05,15.1468]
[1730500097872,29.833084,165.12,165.05,15.1468]
[1730500102103,23.776884,165.12,165.05,15.1468]
[1730500102287,23.776884,165.12,165.06,20.0]
[1730500103293,23.776884,165.12,165.07,15.145]
[1730500105498,23.776884,165.12,165.06,6.0584]
[1730500105690,29.833184,165.12,165.06,6.0584]
[1730500106311,29.833184,165.12,165.06,21.2044]
[1730500106701,29.833184,165.12,165.03,12.3790689]
[1730500106886,29.833184,165.12,165.04,6.059]
[1730500106887,23.776884,165.1,165.04,6.059]
[1730500107086,23.776884,165.08,165.03,15.1484]
[1730500107390,23.776884,165.08,164.99,6.1358]
[1730500107582,23.776884,165.06,165.0,21.2121]
[1730500108904,29.835284,165.06,165.0,21.2121]
[1730500109804,29.835284,165.06,165.0,15.1515]
[1730500115314,23.776884,165.04,164.98,6.31092078]
[1730500115495,23.776884,165.04,164.97,21.2151]
[1730500116405,23.776884,165.04,164.94,30.3132]
[1730500116612,23.776884,165.02,164.95,20.0]
[1730500117601,29.836784,165.02,164.96,21.2171]
[1730500118799,29.836784,165.02,164.96,15.1551]
[1730500128805,23.776884,165.0,164.94,21.2198]
[1730500130203,29.837784,165.0,164.94,21.2198]
[1730500134601,23.776884,165.0,164.94,21.2198]
[1730500134803,23.776884,165.01,164.94,21.2198]
[1730500135923,29.836684,165.02,164.94,21.2198]
[1730500143614,29.837484,165.0,164.94,21.2198]
[1730500145905,29.837484,165.0,164.94,15.157]
[1730500147329,29.837484,165.0,164.92,20.0]
[1730500148532,29.837484,165.0,164.93,21.221]
[1730500155139,23.776884,165.0,164.93,51.5368]
[1730500155308,23.776884,165.0,164.93,67.4614]
[1730500155512,6.0602,165.01,164.93,67.4614]
[1730500156432,6.0598,165.02,164.93,67.4614]
[1730500156617,6.0598,165.02,164.94,26.3642]
[1730500156820,6.0596,165.03,164.94,26.3642]
[1730500158110,85.147,165.05,164.95,21.2185]
[1730500158111,29.835984,165.04,164.95,21.2185]
[1730500158918,29.835984,165.04,164.96,20.0]
[1730500159523,15.7144,165.07,164.96,20.0]
[1730500159838,6.0583,165.07,164.96,20.0]
[1730500160343,6.0576,165.08,164.97,51.5244]
[1730500160515,6.0576,165.08,164.98,20.0]
[1730500161422,6.0576,165.08,164.99,21.2133]
[1730500161823,210.4,165.09,165.0,26.3642]
[1730500162034,216.4574,165.09,165.0,26.3642]
[1730500162211,210.4,165.1,165.0,26.3642]
[1730500162418,210.4,165.09,165.0,26.3642]
[1730500162612,210.4,165.1,165.0,26.3642]
[1730500163441,210.4,165.1,165.02,20.0]
[1730500163617,23.776884,165.09,165.02,20.0]
[1730500164232,234.176884,165.09,165.02,20.0]
[1730500164627,23.776884,165.09,165.02,20.0]
[1730500164829,234.176884,165.09,165.03,21.2082]
[1730500165041,23.776884,165.09,165.03,21.2082]
[1730500165338,234.176884,165.09,165.03,21.2082]
[1730500165535,23.776884,165.09,165.03,51.5057]
[1730500165759,23.776884,165.1,165.04,20.0]
[1730500166038,210.4,165.09,165.04,20.0]
[1730500166619,210.4,165.09,165.05,21.2056]
[1730500167809,23.776884,165.08,165.05,21.2056]
[1730500168022,23.776884,165.08,165.03,20.0]
[1730500168224,23.776884,165.08,165.02,15.1495]
[1730500169210,29.834584,165.08,165.02,15.1495]
[1730500174925,23.776884,165.08,165.02,15.1495]
[1730500177220,23.776884,165.09,165.02,15.1495]
[1730500177425,23.776884,165.1,165.03,20.0]
[1730500178740,23.776884,165.1,165.04,21.2069]
[1730500181754,29.833984,165.1,165.04,21.2069]
[1730500182656,29.833984,165.1,165.02,20.0]
[1730500184042,29.833984,165.1,165.03,21.2082]
[1730500192852,23.776884,165.1,165.03,15.1487]
[1730500193052,6.0565,165.11,165.03,15.1487]
[1730500194326,23.776884,165.1,165.03,15.1487]
[1730500195545,23.776884,165.11,165.04,20.0]
[1730500197044,23.776884,165.11,165.05,21.2056]
[1730500201245,99.833684,165.11,165.02,21.2089]
[1730500201441,23.776884,165.09,165.02,21.2089]
[1730500201651,93.776884,165.09,165.02,21.2089]
[1730500202228,23.776884,165.07,165.02,15.1491]